[Event "FIDE WTC Prel-B 2022"]
[Site "Jerusalem"]
[Date "2022.11.22"]
[Round "5.20"]
[White "Gumularz, Szymon"]
[Black "Abdisalimov, Abdimalik"]
[Result "1-0"]
[ECO "E60"]
[WhiteElo "2561"]
[BlackElo "2457"]
[Annotator "TA"]
[PlyCount "61"]
[EventDate "2022.11.20"]
[EventType "team-tourn"]
[EventCountry "ISR"]
[SourceTitle "playchess.com"]
[Source "ChessBase"]
[SourceQuality "1"]
[WhiteTeam "Poland"]
[BlackTeam "Uzbekistan"]
[WhiteTeamCountry "POL"]
[BlackTeamCountry "UZB"]
[TimeControl "2700+10"]

{[%evp 10,61,29,15,27,25,38,16,27,16,29,16,9,18,51,26,22,27,120,106,235,231,223,251,311,300,305,329,552,542,668,641,752,760,745,764,752,749,774,727,718,721,840,867,867,867,903,913,1029,1020,1068,1062,972,815]} 1. d4 {[%emt 0:00:03]} Nf6 {[%emt 0:00:02]} 2. Nf3 {[%emt 0:00:05]} g6 {[%emt 0:00:08]} 3. g3 {[%emt 0:00:03]} Bg7 {[%emt 0:00:01]} 4. Bg2 {[%emt 0:00:01]} O-O {[%emt 0:00:02]} 5. O-O {[%emt 0:00:02]} d6 {[%emt 0:00:01]} 6. c4 {[%emt 0:00:04]} Ne4 {[%emt 0:00:32] E60: King's Indian: Unusual lines and Fianchetto Variation without Nc3.} 7. Qc2 {[%emt 0:00:22]} f5 {[%emt 0:00:07]} 8. Rd1 {[%emt 0:00:02]} Qe8 {[%emt 0:00:12] The position is equal.} 9. Nc3 {[%emt 0:00:57]} Nxc3 {[%emt 0:00:02]} 10. bxc3 {[%emt 0:00:01]} Nc6 {[%emt 0:01:00]} 11. c5 {[%emt 0:01:03] [#]} dxc5 $146 {[%emt 0:10:45]} ({Predecessor:} 11... Na5 12. a4 h6 13. Nh4 g5 14. Nf3 Bd7 15. h4 g4 16. Ne1 Rc8 17. Nd3 b6 {1-0 (46) Gerasimov,V (2479)-Shablinsky,M (2414) ICCF email 2012}) 12. Ba3 {[%emt 0:00:14]} b6 {[%emt 0:00:33]} 13. dxc5 {[%emt 0:00:19]} Bd7 {[%emt 0:03:32]} (13... Bb7 $11 {keeps the balance.}) 14. Ng5 $16 {[%emt 0:04:12] Threatens to win with Qd3. White is more active.} Bf6 {[%emt 0:04:44] [#] Loses the game.} (14... Rc8 $16) 15. Rxd7 $1 $18 {[%emt 0:06:24][%mdl 512]} Qxd7 {[%emt 0:00:02]} 16. Rd1 {[%emt 0:00:01] Really sharp!} Qe8 {[%emt 0:00:39] [#]} 17. Bd5+ $1 {[%emt 0:01:45]} Kh8 {[%emt 0:00:24]} 18. Ne6 {[%emt 0:00:01][%csl LRc7,LRf8]} Qd7 $2 {[%emt 0:11:16]} (18... Rg8 19. Nxc7 Qd7) 19. Qa4 {[%emt 0:00:44] White is clearly winning.} b5 {[%emt 0:00:17]} 20. Qxb5 {[%emt 0:00:18]} Rab8 {[%emt 0:05:10]} 21. Qxc6 {[%emt 0:00:26]} Qxc6 {[%emt 0:00:06]} 22. Bxc6 {[%emt 0:00:01]} Rg8 {[%emt 0:00:04]} 23. Bb4 {[%emt 0:00:47]} a5 {[%emt 0:00:07]} 24. Bxa5 {[%emt 0:00:06]} Rb2 {[%emt 0:00:02]} 25. Bf3 {[%emt 0:00:44]} c6 {[%emt 0:01:12]} 26. Bxc6 {[%emt 0:02:22]} Rxa2 {[%emt 0:00:17]} 27. Bb4 {[%emt 0:02:01]} Rxe2 {[%emt 0:00:08]} 28. Bd7 {[%emt 0:00:02]} Re4 {[%emt 0:03:24]} 29. c6 {[%emt 0:00:10][%cal Bc5c6,Bc6c7][%mdl 32]} Rc4 {[%emt 0:00:02]} 30. c7 {[%emt 0:00:26]} Bxc3 {[%emt 0:00:16]} 31. Bc5 {[%emt 0:01:17] Weighted Error Value: White=0.03 (flawless) /Black=0.61} 1-0

[Event "FIDE WTC Prel-B 2022"]
[Site "Jerusalem"]
[Date "2022.11.22"]
[Round "5.21"]
[White "Niemann, Hans Moke"]
[Black "Vidit, Santosh Gujrathi"]
[Result "0-1"]
[ECO "A06"]
[WhiteElo "2699"]
[BlackElo "2724"]
[Annotator "TA"]
[PlyCount "74"]
[EventDate "2022.11.20"]
[EventType "team-tourn"]
[EventCountry "ISR"]
[SourceTitle "playchess.com"]
[Source "ChessBase"]
[SourceQuality "1"]
[WhiteTeam "United States"]
[BlackTeam "India"]
[WhiteTeamCountry "USA"]
[BlackTeamCountry "IND"]
[TimeControl "2700+10"]

{[%evp 9,74,9,15,5,18,12,14,16,16,14,12,8,4,3,5,0,15,0,0,0,10,0,5,-19,-14,-60,-68,-56,-31,-33,-22,-25,-25,-22,-21,-29,-32,-27,13,-24,-29,-34,-22,-126,-113,-420,-419,-414,-414,-408,-392,-401,-373,-387,-389,-362,-336,-5026,-29976,-29975,-5006,-29972,-29973,-29952,-6498,-2168,-1844]} 1. Nf3 {[%emt 0:00:04]} d5 {[%emt 0:00:36]} 2. e3 {[%emt 0:00:05]} Nf6 {[%emt 0:01:19]} 3. b3 {[%emt 0:00:05]} Bf5 {[%emt 0:01:13]} 4. Be2 {[%emt 0:00:06]} h6 {[%emt 0:00:07]} 5. Ba3 {[%emt 0:00:04]} Nbd7 {[%emt 0:01:05]} 6. c4 {[%emt 0:00:28] A06: Réti Opening: 1 Nf3 d5.} c6 {[%emt 0:00:42]} 7. O-O {[%emt 0:00:30] [#]} e5 $146 {[%emt 0:01:15]} ({Predecessor:} 7... e6 8. Bxf8 Nxf8 9. Nc3 N8d7 10. d4 O-O 11. b4 Qe7 12. Qb3 Bg4 13. Rfd1 Ne4 {0-1 (70) Dzagnidze,N (2510)-Goryachkina,A (2522) Kazan 2019}) 8. Bxf8 {[%emt 0:00:47] The position is equal.} Kxf8 {[%emt 0:00:09]} 9. Nc3 {[%emt 0:03:49]} Qe7 {[%emt 0:00:37]} 10. d4 {[%emt 0:01:35]} e4 {[%emt 0:00:16]} 11. Nd2 {[%emt 0:00:40]} h5 {[%emt 0:00:40]} 12. Re1 {[%emt 0:01:13]} g6 {[%emt 0:02:20]} 13. a4 {[%emt 0:00:52]} Kg7 {[%emt 0:00:49]} 14. Qc1 {[%emt 0:01:04]} a6 {[%emt 0:09:42]} 15. Qa3 {[%emt 0:00:14]} Qe6 {[%emt 0:00:09]} 16. Bf1 {[%emt 0:00:34]} h4 {[%emt 0:00:25]} 17. h3 {[%emt 0:00:45]} (17. b4 $11) 17... g5 $15 {[%emt 0:00:48]} 18. f3 {[%emt 0:00:28] Against g4} Rae8 {[%emt 0:02:25]} 19. cxd5 {[%emt 0:03:52]} cxd5 {[%emt 0:00:02] With the idea ...exf3.} 20. fxe4 {[%emt 0:00:03]} (20. Qb4 {is more complex.} exf3 21. Nxf3 g4 22. Ng5) 20... Bxe4 {[%emt 0:02:10]} (20... Nxe4 21. Ndxe4 Bxe4 22. Nxe4 Qxe4 23. Qb4 $11) (20... dxe4 21. Rac1 $14) 21. Ndxe4 {[%emt 0:00:41]} Nxe4 {[%emt 0:00:33]} (21... dxe4 22. Bc4 Qe7 23. a5 $14) 22. Nxe4 {[%emt 0:00:02]} Qxe4 {[%emt 0:00:04]} ({But not} 22... dxe4 23. Rac1 $16) 23. Qb4 {[%emt 0:00:08]} Rb8 {[%emt 0:04:43]} 24. Rac1 {[%emt 0:01:38]} Nf6 {[%emt 0:00:23]} 25. Rc7 {[%emt 0:00:24]} g4 {[%emt 0:08:13]} 26. Re2 {[%emt 0:06:22]} (26. Rxb7 $2 a5 27. Qe7 Rxb7 28. Qxb7 gxh3 29. gxh3 Rh5 $19) (26. Qe7 $11 Qxe7 27. Rxe7) 26... g3 {[%emt 0:03:07]} 27. Rxb7 $2 {[%emt 0:03:48][%mdl 8192] Now White is beyond hope.} (27. Re7 $17 {is a better chance.} Qg6 28. Re1 (28. Rxb7 a5 $17)) 27... a5 $1 $19 {[%emt 0:00:21]} 28. Qb6 {[%emt 0:00:10]} Rxb7 {[%emt 0:04:42]} 29. Qxb7 {[%emt 0:00:01]} Qf5 {[%emt 0:00:10] [#] ...Rc8 is the strong threat.} 30. Qc7 {[%emt 0:02:39]} Rc8 {[%emt 0:00:01][%cal Bh8c8,Bc8c1,Bc1a1][%mdl 32]} 31. Qe5 {[%emt 0:00:29]} Qxe5 {[%emt 0:00:03]} 32. dxe5 {[%emt 0:00:01][%mdl 4096] Endgame KRB-KRN} Ne4 {[%emt 0:00:02]} 33. Rb2 $2 {[%emt 0:00:52]} (33. Re1 Rc3 34. Bb5 (34. Rd1 $2 Rxb3 35. Ba6 Rxe3 $19)) 33... Rc1 {[%emt 0:00:23]} 34. b4 {[%emt 0:01:01]} axb4 {[%emt 0:00:04]} (34... Rd1 $142 35. b5 Nd2 36. Rxd2 Rxd2 37. b6 Rd1 38. b7 Rb1 39. b8=B Rxb8 40. Bd3 Rb3 41. Bc2 Rb2 42. Bf5 Re2 43. Kf1 Rf2+ 44. Ke1 Rxf5 45. Kd2 Rf2+ 46. Kd3 Rxg2 47. Kc3 Rf2 48. e6 fxe6 49. Kd4 g2 50. Kc5 Rc2+ 51. Kb5 g1=Q 52. Kxa5 Qxe3 53. Kb5 Qb3+ 54. Ka5 Rc4 55. Ka6 Rxa4#) 35. a5 {[%emt 0:00:11]} b3 {[%emt 0:00:39]} 36. a6 {[%emt 0:00:01]} Ra1 {[%emt 0:00:09] [#] ( -> ...Nc5)} 37. a7 {[%emt 0:00:02]} Nc5 {[%emt 0:00:18] Weighted Error Value: White=0.58/Black=0.17 (very precise)} 0-1

[Event "FIDE WTC Prel-B 2022"]
[Site "Jerusalem"]
[Date "2022.11.22"]
[Round "5.22"]
[White "Nihal Sarin"]
[Black "Onischuk, Alexander"]
[Result "1/2-1/2"]
[ECO "E51"]
[WhiteElo "2670"]
[BlackElo "2640"]
[Annotator "TA"]
[PlyCount "98"]
[EventDate "2022.11.20"]
[EventType "team-tourn"]
[EventCountry "ISR"]
[SourceTitle "playchess.com"]
[Source "ChessBase"]
[SourceQuality "1"]
[WhiteTeam "India"]
[BlackTeam "United States"]
[WhiteTeamCountry "IND"]
[BlackTeamCountry "USA"]
[TimeControl "2700+10"]

{[%evp 13,98,-5,-3,0,0,0,0,0,8,-16,7,7,4,4,3,0,-6,-41,0,-37,-37,-43,0,-41,0,0,8,8,6,8,6,6,17,15,18,20,16,16,27,27,27,28,28,29,39,35,47,30,45,17,22,28,29,25,76,72,79,72,79,74,79,68,83,84,99,97,93,83,84,80,97,77,91,91,95,0,43,43,43,42,43,42,45,43,43,33,33]} 1. d4 {[%emt 0:00:02]} Nf6 {[%emt 0:00:03]} 2. c4 {[%emt 0:00:03]} e6 {[%emt 0:00:03]} 3. Nc3 {[%emt 0:00:02]} Bb4 {[%emt 0:00:06]} 4. e3 {[%emt 0:00:02]} O-O {[%emt 0:00:53]} 5. Bd2 {[%emt 0:00:02]} d5 {[%emt 0:02:20]} 6. Nf3 {[%emt 0:00:02]} b6 {[%emt 0:00:34]} 7. cxd5 {[%emt 0:00:05]} exd5 {[%emt 0:00:17]} 8. Rc1 {[%emt 0:00:02] E51: Nimzo-Indian: Rubinstein: 4...0-0 5 Nf3 d5.} Be7 {[%emt 0:01:40]} 9. Bd3 {[%emt 0:00:15]} Bb7 {[%emt 0:02:35]} 10. O-O {[%emt 0:00:10] The position is equal.} c5 {[%emt 0:00:29]} 11. Ne5 {[%emt 0:00:26] 11.dxc5 injects fresh life into this line.} a6 {[%emt 0:04:40]} 12. Be1 {[%emt 0:11:36]} Nc6 {[%emt 0:00:45]} 13. f4 {[%emt 0:00:10]} cxd4 {[%emt 0:01:40]} 14. Nxc6 {[%emt 0:00:58]} Bxc6 {[%emt 0:00:10] [#]} 15. exd4 $146 {[%emt 0:00:03]} (15. Ne2 $5 {[%cal Rc1c6]} Qe8 16. Nxd4 $11) ({Predecessor:} 15. Ne2 Bd7 16. Nxd4 Re8 17. Qf3 Ne4 18. Bxe4 dxe4 19. Qh5 Rc8 20. Bc3 Rc5 21. Qe2 {½-½ (30) Ponomariov,R (2675)-Yilmaz,M (2595) Douglas 2019}) 15... Ne4 {[%emt 0:03:52]} 16. Bxe4 {[%emt 0:10:56]} dxe4 {[%emt 0:00:07]} 17. d5 {[%emt 0:00:01]} Bc5+ {[%emt 0:01:58] This bishop pair is nice.} 18. Kh1 {[%emt 0:02:56]} (18. Bf2 $5 {[%cal Rf2c5]} e3 19. dxc6 $11) 18... Bb7 {[%emt 0:00:15]} (18... Bb5 $5 19. Nxb5 axb5 $15) 19. Nxe4 {[%emt 0:01:00]} Qxd5 {[%emt 0:02:42]} 20. Qxd5 {[%emt 0:00:09]} Bxd5 {[%emt 0:00:02]} 21. Nxc5 {[%emt 0:00:02]} bxc5 {[%emt 0:00:02]} 22. a3 {[%emt 0:03:31]} c4 {[%emt 0:00:56]} 23. Ba5 {[%emt 0:00:02]} Be4 {[%emt 0:01:22]} 24. Rfe1 {[%emt 0:00:35]} ({Reject} 24. Rxc4 Bd3 25. Rcc1 Bxf1 26. Rxf1 Rfe8 $17) 24... Bd3 {[%emt 0:00:28]} 25. Re7 {[%emt 0:00:02]} Rab8 {[%emt 0:02:27]} 26. Bc3 {[%emt 0:00:06]} Rfe8 {[%emt 0:00:12]} 27. Rce1 {[%emt 0:00:04]} Rxe7 {[%emt 0:00:52]} 28. Rxe7 $11 {[%emt 0:00:02][%mdl 4096] Endgame KRB-KRB} h6 {[%emt 0:00:19]} 29. g4 {[%emt 0:01:38]} Rb6 {[%emt 0:04:50]} 30. Re8+ {[%emt 0:03:39]} Kh7 {[%emt 0:00:06]} 31. f5 {[%emt 0:00:03]} h5 {[%emt 0:01:24]} 32. h3 {[%emt 0:00:05]} hxg4 {[%emt 0:00:05]} 33. hxg4 {[%emt 0:00:01]} f6 {[%emt 0:02:34]} (33... Kh6 $11 {remains equal.}) 34. Kg2 {[%emt 0:00:44]} Rd6 {[%emt 0:00:21]} 35. Kg3 {[%emt 0:03:25]} Bc2 {[%emt 0:00:28]} 36. Re7 {[%emt 0:00:31]} Kg8 {[%emt 0:01:06]} 37. Rc7 {[%emt 0:01:04] White is more active.} Rd1 {[%emt 0:04:52]} 38. Rxc4 {[%emt 0:03:22]} Rg1+ {[%emt 0:01:09]} 39. Kf2 {[%emt 0:00:09]} Rf1+ {[%emt 0:00:27]} 40. Kg2 {[%emt 0:01:33] [#] aiming for Rc8+.} Bd3 {[%emt 0:00:21]} 41. Rd4 {[%emt 0:00:09]} Rd1 {[%emt 0:00:07]} 42. Kf2 {[%emt 0:00:43]} Bc2 {[%emt 0:00:23]} 43. Rb4 {[%emt 0:00:15]} Kh7 {[%emt 0:00:37]} 44. Rd4 {[%emt 0:01:20]} (44. Rb6 $16) 44... Rxd4 {[%emt 0:00:13]} 45. Bxd4 {[%emt 0:00:01] White is slightly better.} Bb3 {[%emt 0:00:16]} 46. Ke3 {[%emt 0:00:05]} Kg8 {[%emt 0:00:03]} 47. Kf4 {[%emt 0:00:01]} Kf7 {[%emt 0:00:02]} 48. Bc3 {[%emt 0:00:01]} g6 {[%emt 0:00:31]} 49. fxg6+ {[%emt 0:00:03]} Kxg6 {[%emt 0:00:02] Weighted Error Value: White=0.09 (flawless) /Black=0.10 (very precise)} 1/2-1/2

[Event "FIDE WTC Prel-B 2022"]
[Site "Jerusalem"]
[Date "2022.11.22"]
[Round "5.23"]
[White "Akobian, Varuzhan"]
[Black "Narayanan.S.L"]
[Result "0-1"]
[ECO "E54"]
[WhiteElo "2591"]
[BlackElo "2673"]
[Annotator "TA"]
[PlyCount "76"]
[EventDate "2022.11.20"]
[EventType "team-tourn"]
[EventCountry "ISR"]
[SourceTitle "playchess.com"]
[Source "ChessBase"]
[SourceQuality "1"]
[WhiteTeam "United States"]
[BlackTeam "India"]
[WhiteTeamCountry "USA"]
[BlackTeamCountry "IND"]
[TimeControl "2700+10"]

{[%evp 18,76,31,35,25,19,12,10,9,20,20,0,0,-77,-82,-57,-22,-23,-21,-45,-43,-18,-28,-54,-54,-54,-56,-58,-60,-54,-57,-44,-38,-71,-66,-183,-175,-185,-165,-275,-274,-259,-270,-241,-56,-318,-301,-429,-416,-559,-414,-412,-404,-675,-618,-1425,-1387,-29979,-29979,-29988,-29989]} 1. d4 {[%emt 0:00:04]} Nf6 {[%emt 0:00:03]} 2. c4 {[%emt 0:00:04]} e6 {[%emt 0:00:03]} 3. Nc3 {[%emt 0:00:48]} Bb4 {[%emt 0:00:03]} 4. e3 {[%emt 0:00:13]} O-O {[%emt 0:00:05]} 5. Bd3 {[%emt 0:01:39]} d5 {[%emt 0:00:03]} 6. Nf3 {[%emt 0:02:29]} c5 {[%emt 0:00:22]} 7. O-O {[%emt 0:01:12]} dxc4 {[%emt 0:00:03]} 8. Bxc4 {[%emt 0:00:02]} a6 {[%emt 0:00:02]} 9. a3 {[%emt 0:02:11]} Bxc3 {[%emt 0:00:04]} 10. bxc3 {[%emt 0:00:01]} b5 {[%emt 0:00:03] E54: Nimzo-Indian: Rubinstein: Main Line: 7...dxc4 8 Bxc4.} 11. Bd3 {[%emt 0:00:18]} Bb7 {[%emt 0:00:14]} 12. a4 {[%emt 0:00:50]} ({Of course not} 12. dxc5 Nbd7 $15) 12... c4 {[%emt 0:00:06] The position is equal.} 13. Bc2 {[%emt 0:00:09]} Nbd7 {[%emt 0:05:31] [#]} 14. Ba3 $146 {[%emt 0:02:07]} ({Predecessor:} 14. axb5 axb5 15. Ba3 Re8 16. Nd2 e5 17. Re1 Qa5 18. Bb4 Qxa1 19. Qxa1 Rxa1 20. Rxa1 exd4 21. exd4 {0-1 (46) Sanga,A (2033)-Negyesy,G (1944) LSS email 2008}) 14... Re8 {[%emt 0:00:03]} 15. Qb1 {[%emt 0:00:08]} (15. Qe2 $11) 15... Bxf3 $17 {[%emt 0:07:46]} 16. gxf3 {[%emt 0:00:02]} Qb6 {[%emt 0:00:22]} 17. f4 {[%emt 0:06:16]} g6 {[%emt 0:01:31]} 18. e4 {[%emt 0:04:28]} Nh5 {[%emt 0:02:01]} 19. Bc1 {[%emt 0:00:12]} Qc7 {[%emt 0:05:34]} 20. e5 {[%emt 0:01:39]} Nb6 {[%emt 0:02:26]} 21. axb5 {[%emt 0:00:29]} axb5 {[%emt 0:04:45] [#] aiming for ...Nd5.} 22. Rxa8 {[%emt 0:00:43]} Rxa8 {[%emt 0:00:03]} 23. Be4 {[%emt 0:00:09]} Rb8 {[%emt 0:06:15]} 24. f5 {[%emt 0:09:50]} exf5 {[%emt 0:02:17]} 25. Bf3 {[%emt 0:01:40]} Qd7 {[%emt 0:00:04]} 26. Ba3 {[%emt 0:04:39] [#]} (26. h3 $15) 26... Nf4 $1 $19 {[%emt 0:00:33][%cal Bh5f4,Bf4h3,Bh3g5,Bg5e6][%mdl 32]} 27. Bd6 {[%emt 0:00:13]} Rc8 {[%emt 0:00:20]} 28. Qa1 {[%emt 0:03:17]} (28. Qd1 $142) 28... Nh3+ {[%emt 0:01:34] Pair of Knights!} 29. Kh1 {[%emt 0:00:14]} Ng5 {[%emt 0:00:01]} 30. Bg2 {[%emt 0:01:04]} f4 $2 $40 {[%emt 0:00:14][%mdl 128] Black mounts an attack.} (30... Ne4 $19 {And now ...Nd5 would win.} 31. Bb4 Nd5) 31. f3 $2 {[%emt 0:02:04][%mdl 8192] Now White is beyond hope.} ({Only move:} 31. Qc1 $1 $15) 31... Nd5 {[%emt 0:00:24][%cal Ob5b4]} 32. h4 {[%emt 0:00:13]} (32. Qb2 $142) 32... Ne6 {[%emt 0:00:16] Threatens to win with ...Qd8.} 33. Bh3 {[%emt 0:00:03]} Ne3 {[%emt 0:01:35]} 34. Rf2 {[%emt 0:00:40]} Qd8 {[%emt 0:00:06]} 35. Bxe6 {[%emt 0:00:10]} (35. Qg1 $142 Qxh4 36. Rh2) 35... fxe6 {[%emt 0:00:07]} 36. Rh2 {[%emt 0:00:18]} Ra8 {[%emt 0:00:30][%cal Ra8a1]} 37. Qb1 {[%emt 0:00:10]} Ra6 {[%emt 0:01:05]} 38. Qe1 {[%emt 0:00:31]} Qa8 {[%emt 0:00:06] Weighted Error Value: White=0.82/Black=0.15 (very precise)} 0-1

[Event "FIDE WTC Prel-B 2022"]
[Site "Jerusalem"]
[Date "2022.11.22"]
[Round "5.24"]
[White "Sethuraman, S.P."]
[Black "Quesada Perez, Yuniesky"]
[Result "1/2-1/2"]
[ECO "C45"]
[WhiteElo "2643"]
[BlackElo "2583"]
[Annotator "TA"]
[PlyCount "145"]
[EventDate "2022.11.20"]
[EventType "team-tourn"]
[EventCountry "ISR"]
[SourceTitle "playchess.com"]
[Source "ChessBase"]
[SourceQuality "1"]
[WhiteTeam "India"]
[BlackTeam "United States"]
[WhiteTeamCountry "IND"]
[BlackTeamCountry "USA"]
[TimeControl "2700+10"]

{[%evp 11,145,0,31,0,-1,0,51,30,35,31,34,43,34,12,0,-36,-30,-39,-38,-40,-40,-43,-44,-46,-39,-47,-46,-85,-42,-44,-48,-59,-60,-52,-42,-62,-31,-32,-21,-86,-90,-88,-88,-89,-83,-106,-91,-81,-95,-112,-98,-112,-114,-145,-130,-136,-155,-135,-94,-89,-97,-73,-90,-91,-91,-136,-127,-134,-92,-118,-106,-150,-150,-150,-151,-133,-138,-168,-120,-120,-121,-157,-110,-130,-129,-143,-136,-136,-117,-177,-176,-190,-68,-68,-68,-68,-56,-56,-41,-45,-33,-33,-14,-14,-14,-14,-14,-22,-22,-22,-22,-69,-69,-69,-69,-69,-69,-69,-68,-69,-69,-69,-69,-69,-69,-69,-69,-69,-69,-69,-69,-69,-69,-69,-69,-69]} 1. e4 {[%emt 0:00:06]} e5 {[%emt 0:00:04]} 2. Nf3 {[%emt 0:00:03]} Nc6 {[%emt 0:00:04]} 3. d4 {[%emt 0:00:03]} exd4 {[%emt 0:00:06]} 4. Nxd4 {[%emt 0:00:03]} Bc5 {[%emt 0:00:30]} 5. Nb3 {[%emt 0:00:03]} Bb6 {[%emt 0:00:06]} 6. Nc3 {[%emt 0:00:03]} d6 {[%emt 0:01:08]} 7. Bf4 {[%emt 0:00:04] C45: Scotch Game.} Nf6 {[%emt 0:02:38] 7...Nge7 deserves study.} 8. Qd2 {[%emt 0:00:09]} Be6 {[%emt 0:01:43]} (8... a5 $11) 9. O-O-O $14 {[%emt 0:00:06] White is slightly better.} a6 {[%emt 0:00:56]} 10. f3 {[%emt 0:09:43][%cal Bf2f3,Bf3f4][%mdl 32] [#]} h6 $146 {[%emt 0:04:37]} ({Predecessor:} 10... Ne7 11. g4 Ng6 12. Be3 Bxe3 13. Qxe3 Bxb3 14. axb3 h6 15. Be2 Qe7 16. f4 c6 {1-0 (29) Ahmed,S (2172)-Fong,Y (2125) Dhaka 2019}) 11. Bg3 {[%emt 0:02:39]} Qd7 {[%emt 0:01:29]} 12. f4 {[%emt 0:00:37]} O-O-O {[%emt 0:10:41]} 13. Bh4 {[%emt 0:00:23]} g5 {[%emt 0:02:51]} 14. Bf2 {[%emt 0:11:58]} Bxf2 $1 {[%emt 0:03:05]} ({Much less strong is} 14... Bg4 15. Bxb6 cxb6 16. Re1 $16) 15. Qxf2 {[%emt 0:00:02]} Ng4 {[%emt 0:01:27]} 16. Qd2 {[%emt 0:00:02]} gxf4 {[%emt 0:00:19]} 17. Qxf4 {[%emt 0:00:03]} Qe7 {[%emt 0:00:09]} 18. g3 {[%emt 0:04:40]} Qg5 {[%emt 0:00:43] ...Nf2 is the strong threat.} 19. Rd2 {[%emt 0:00:03] Against Nf2} Qxf4 {[%emt 0:05:16]} 20. gxf4 {[%emt 0:00:02]} f5 {[%emt 0:00:02]} 21. Bd3 {[%emt 0:01:02]} Rdf8 {[%emt 0:01:45]} 22. Rf1 {[%emt 0:03:30][%cal Oe4e5]} fxe4 {[%emt 0:02:34]} 23. Bxe4 {[%emt 0:00:07]} Nf6 {[%emt 0:00:55]} 24. Bf3 {[%emt 0:04:01]} Rhg8 {[%emt 0:00:07]} 25. Re1 {[%emt 0:00:45]} (25. Nd4 $11 Nxd4 26. Rxd4) 25... Bg4 $17 {[%emt 0:00:29]} 26. Rf2 {[%emt 0:04:36]} Bxf3 {[%emt 0:01:20]} 27. Rxf3 {[%emt 0:00:01]} Rg2 {[%emt 0:00:15]} 28. Re2 {[%emt 0:00:52]} Rg1+ {[%emt 0:00:01]} 29. Kd2 {[%emt 0:00:02]} Kd7 {[%emt 0:00:41]} 30. Re1 {[%emt 0:02:52]} Rg4 {[%emt 0:00:41]} 31. Ref1 {[%emt 0:01:11]} Ne7 {[%emt 0:00:41]} 32. Nd4 {[%emt 0:00:02]} c5 {[%emt 0:00:12]} 33. Nde2 {[%emt 0:00:02]} Nf5 {[%emt 0:00:06]} 34. Rh3 {[%emt 0:00:16]} b5 {[%emt 0:00:56][%cal Bb7b5,Bb5b4][%mdl 32]} 35. Ng3 {[%emt 0:00:03]} Nxg3 {[%emt 0:00:42]} 36. hxg3 {[%emt 0:00:01]} b4 {[%emt 0:00:05]} 37. Ne2 {[%emt 0:00:02] [#]} h5 $1 {[%emt 0:00:01]} 38. f5 {[%emt 0:00:42]} Rg5 {[%emt 0:00:21]} 39. Rh4 {[%emt 0:00:08]} Re8 {[%emt 0:00:09]} 40. Rf3 {[%emt 0:00:22]} Re5 {[%emt 0:00:19]} 41. Rhf4 {[%emt 0:00:02]} Nd5 {[%emt 0:00:30]} 42. Rh4 {[%emt 0:00:04]} Rgxf5 {[%emt 0:00:10]} 43. Rxf5 {[%emt 0:00:04]} Rxf5 {[%emt 0:00:01][%mdl 4096] Endgame KRN-KRN} 44. a3 {[%emt 0:00:03]} a5 {[%emt 0:00:04]} (44... bxa3 $19 45. bxa3 Kc6) 45. axb4 {[%emt 0:00:02]} axb4 {[%emt 0:00:05]} 46. c3 {[%emt 0:00:05] [#]} Rg5 {[%emt 0:00:20]} ({Better is} 46... b3 $1 47. Nc1 Rf2+ 48. Ne2 Nf6) 47. cxb4 {[%emt 0:00:08]} Nxb4 {[%emt 0:00:06]} 48. Ke3 {[%emt 0:00:27]} Re5+ {[%emt 0:00:25]} 49. Kd2 {[%emt 0:00:06]} Nd5 {[%emt 0:00:10]} 50. Nf4 {[%emt 0:00:10]} (50. g4 $17) 50... Nf6 $19 {[%emt 0:00:22]} 51. Ne2 {[%emt 0:00:07]} Kc6 {[%emt 0:00:28]} (51... d5 $19 {Threatens to win with ...Ne4+.} 52. Rf4 Ne4+ 53. Kc2 Rg5) 52. b4 $1 $15 {[%emt 0:00:18]} Ne4+ {[%emt 0:00:30]} 53. Kd3 {[%emt 0:00:06]} Nf2+ {[%emt 0:00:16]} 54. Kd2 {[%emt 0:00:01]} Rd5+ {[%emt 0:00:11]} 55. Kc2 {[%emt 0:00:10]} Rg5 {[%emt 0:00:14]} 56. bxc5 {[%emt 0:00:10]} dxc5 {[%emt 0:00:01]} 57. Nf4 {[%emt 0:00:23]} Rxg3 {[%emt 0:00:15]} 58. Rxh5 {[%emt 0:00:04]} Ne4 {[%emt 0:00:03]} 59. Nd3 {[%emt 0:00:29]} Rg2+ {[%emt 0:00:22]} 60. Kc1 {[%emt 0:00:20]} Kb5 {[%emt 0:00:11]} 61. Nxc5 {[%emt 0:00:16]} Nxc5 $11 {[%emt 0:00:01] KRN-KR. Black is slightly better.} 62. Rh4 {[%emt 0:00:05]} Nd3+ {[%emt 0:00:05]} 63. Kd1 {[%emt 0:00:08]} Nb2+ {[%emt 0:00:07]} 64. Ke1 {[%emt 0:00:04]} Nc4 {[%emt 0:00:01]} 65. Re4 {[%emt 0:00:15]} Kc5 {[%emt 0:00:02]} 66. Re2 {[%emt 0:00:02]} Rg8 {[%emt 0:00:06]} 67. Kf2 {[%emt 0:00:02]} Kd4 {[%emt 0:00:02]} 68. Ra2 {[%emt 0:00:23]} Rh8 {[%emt 0:00:26] ( -> ...Rh2+)} 69. Kg3 {[%emt 0:00:11] Inhibits Rh2.} Ne5 {[%emt 0:00:07]} 70. Ra4+ {[%emt 0:00:10]} Ke3 {[%emt 0:00:01]} 71. Ra3+ {[%emt 0:00:07]} Nd3 {[%emt 0:00:20]} 72. Kg4 {[%emt 0:00:04]} Rg8+ {[%emt 0:00:16]} 73. Kf5 {[%emt 0:00:02] Whites escaped into a draw.  Weighted Error Value: White=0.14 (very precise) /Black=0.11 (very precise)} 1/2-1/2